[Event "Titled Tuesday Blitz January 31 Late 2023"]
[White "Sokolovsky, Yahli"]
[Black "Drnovsek, Gal"]
[WhiteFideId "2820242"]
[BlackFideId "14607077"]
[WhiteElo "2461"]
[BlackElo "2397"]
[Result "1-0"]
[Round "03"]
[TimeControl "180+2"]
[Date "2023.01.31"]
[WhiteClock "0:00:16"]
[BlackClock "0:00:22"]

1. b3 {[%clk 0:03:00]}  Nf6 {[%clk 0:02:39]} 2. Bb2 {[%clk 0:03:00]}  g6 {[%clk 0:02:37]} 3. Nf3 {[%clk 0:02:59]}  Bg7 {[%clk 0:02:33]} 4. d4 {[%clk 0:03:00]}  O-O {[%clk 0:02:33]} 5. e3 {[%clk 0:03:00]}  Ne4 {[%clk 0:02:33]} 6. c4 {[%clk 0:02:56]}  c5 {[%clk 0:02:31]} 7. Bd3 {[%clk 0:02:53]}  d5 {[%clk 0:02:30]} 8. cxd5 {[%clk 0:02:46]}  Qxd5 {[%clk 0:02:30]} 9. Qc2 {[%clk 0:02:45]}  Ng5 {[%clk 0:02:19]} 10. Nbd2 {[%clk 0:02:06]}  cxd4 {[%clk 0:02:13]} 11. Nxg5 {[%clk 0:01:31]}  Qxg2 {[%clk 0:02:02]} 12. Ndf3 {[%clk 0:01:25]}  dxe3 {[%clk 0:01:36]} 13. Bxg7 {[%clk 0:01:09]}  exf2+ {[%clk 0:01:34]} 14. Qxf2 {[%clk 0:01:08]}  Qxf2+ {[%clk 0:01:35]} 15. Kxf2 {[%clk 0:01:08]}  Kxg7 {[%clk 0:01:35]} 16. Rhe1 {[%clk 0:00:58]}  Nc6 {[%clk 0:01:35]} 17. Bb5 {[%clk 0:00:54]}  h6 {[%clk 0:01:34]} 18. Ne4 {[%clk 0:00:51]}  Nb4 {[%clk 0:01:29]} 19. Rac1 {[%clk 0:00:42]}  a6 {[%clk 0:01:25]} 20. Bf1 {[%clk 0:00:32]}  Nd5 {[%clk 0:01:17]} 21. Nc5 {[%clk 0:00:28]}  e6 {[%clk 0:01:12]} 22. Ne5 {[%clk 0:00:23]}  b6 {[%clk 0:01:12]} 23. Na4 {[%clk 0:00:24]}  f6 {[%clk 0:01:02]} 24. Nc6 {[%clk 0:00:19]}  Bd7 {[%clk 0:00:54]} 25. Nd4 {[%clk 0:00:14]}  Kf7 {[%clk 0:00:49]} 26. Bg2 {[%clk 0:00:13]}  Nb4 {[%clk 0:00:16]} 27. Bxa8 {[%clk 0:00:12]}  Nd3+ {[%clk 0:00:16]} 28. Ke2 {[%clk 0:00:13]}  Nxc1+ {[%clk 0:00:15]} 29. Rxc1 {[%clk 0:00:13]}  Rxa8 {[%clk 0:00:16]} 30. Rc7 {[%clk 0:00:13]}  Ke8 {[%clk 0:00:16]} 31. Rxd7 {[%clk 0:00:12]}  Kxd7 {[%clk 0:00:16]} 32. Nxb6+ {[%clk 0:00:13]}  Kd6 {[%clk 0:00:17]} 33. Nxa8 {[%clk 0:00:14]}  e5 {[%clk 0:00:16]} 34. Nc2 {[%clk 0:00:14]}  f5 {[%clk 0:00:16]} 35. Nb6 {[%clk 0:00:14]}  g5 {[%clk 0:00:16]} 36. Nc4+ {[%clk 0:00:14]}  Kd5 {[%clk 0:00:17]} 37. N2e3+ {[%clk 0:00:14]}  Ke4 {[%clk 0:00:17]} 38. Nd6+ {[%clk 0:00:14]}  Kf4 {[%clk 0:00:16]} 39. Nexf5 {[%clk 0:00:14]}  e4 {[%clk 0:00:16]} 40. Nxh6 {[%clk 0:00:12]}  a5 {[%clk 0:00:15]} 41. Nc4 {[%clk 0:00:12]}  g4 {[%clk 0:00:15]} 42. Nxg4 {[%clk 0:00:12]}  Kxg4 {[%clk 0:00:15]} 43. Nxa5 {[%clk 0:00:13]}  Kf4 {[%clk 0:00:15]} 44. Nc4 {[%clk 0:00:13]}  Kg4 {[%clk 0:00:15]} 45. a4 {[%clk 0:00:13]}  Kf4 {[%clk 0:00:16]} 46. a5 {[%clk 0:00:14]}  Kg4 {[%clk 0:00:17]} 47. a6 {[%clk 0:00:15]}  Kh3 {[%clk 0:00:18]} 48. a7 {[%clk 0:00:15]}  Kg2 {[%clk 0:00:18]} 49. a8=Q {[%clk 0:00:16]}  Kh1 {[%clk 0:00:19]} 50. Qxe4+ {[%clk 0:00:16]}  Kg1 {[%clk 0:00:20]} 51. Qg4+ {[%clk 0:00:15]}  Kh1 {[%clk 0:00:21]} 52. Kf2 {[%clk 0:00:15]}  Kxh2 {[%clk 0:00:22]} 53. Qg2# {[%clk 0:00:16]} 1-0


[Site "https://www.chess.com"]

[Event "Titled Tuesday Blitz January 31 Late 2023"]
[White "Krysa, Leandro"]
[Black "Hajiyev, Kanan"]
[WhiteFideId "116807"]
[BlackFideId "13404148"]
[WhiteElo "2541"]
[BlackElo "2197"]
[Result "1-0"]
[Round "03"]
[TimeControl "180+2"]
[Date "2023.01.31"]
[WhiteClock "0:00:07"]
[BlackClock "0:00:14"]

1. e4 {[%clk 0:03:00]}  c6 {[%clk 0:02:36]} 2. d4 {[%clk 0:03:00]}  d5 {[%clk 0:02:37]} 3. e5 {[%clk 0:03:00]}  a6 {[%clk 0:02:34]} 4. Bd3 {[%clk 0:02:55]}  c5 {[%clk 0:02:24]} 5. c3 {[%clk 0:02:52]}  cxd4 {[%clk 0:02:24]} 6. cxd4 {[%clk 0:02:46]}  Nc6 {[%clk 0:02:25]} 7. Be3 {[%clk 0:02:39]}  Qb6 {[%clk 0:02:21]} 8. Qd2 {[%clk 0:02:34]}  Nh6 {[%clk 0:02:08]} 9. Nc3 {[%clk 0:02:31]}  Qa5 {[%clk 0:01:41]} 10. Bxh6 {[%clk 0:02:09]}  gxh6 {[%clk 0:01:40]} 11. Nge2 {[%clk 0:02:09]}  Bg4 {[%clk 0:01:32]} 12. f3 {[%clk 0:02:03]}  Bh5 {[%clk 0:01:30]} 13. Nf4 {[%clk 0:01:49]}  Bg6 {[%clk 0:01:23]} 14. Bxg6 {[%clk 0:01:33]}  hxg6 {[%clk 0:01:21]} 15. e6 {[%clk 0:01:33]}  O-O-O {[%clk 0:01:00]} 16. exf7 {[%clk 0:01:30]}  e5 {[%clk 0:00:58]} 17. Nxg6 {[%clk 0:01:23]}  Rh7 {[%clk 0:00:36]} 18. Nxf8 {[%clk 0:01:21]}  Rxf8 {[%clk 0:00:35]} 19. dxe5 {[%clk 0:01:21]}  Rhxf7 {[%clk 0:00:25]} 20. Qxd5 {[%clk 0:01:15]}  Qxd5 {[%clk 0:00:22]} 21. Nxd5 {[%clk 0:01:15]}  Nxe5 {[%clk 0:00:23]} 22. O-O {[%clk 0:01:12]}  Kb8 {[%clk 0:00:22]} 23. Rfd1 {[%clk 0:01:07]}  Rg8 {[%clk 0:00:20]} 24. Kh1 {[%clk 0:01:01]}  Ka7 {[%clk 0:00:20]} 25. Nc3 {[%clk 0:00:54]}  Nc4 {[%clk 0:00:20]} 26. b3 {[%clk 0:00:48]}  Ne3 {[%clk 0:00:20]} 27. Rd2 {[%clk 0:00:48]}  h5 {[%clk 0:00:20]} 28. Re1 {[%clk 0:00:46]}  Nf5 {[%clk 0:00:19]} 29. Ne4 {[%clk 0:00:44]}  h4 {[%clk 0:00:19]} 30. h3 {[%clk 0:00:44]}  Re7 {[%clk 0:00:16]} 31. Rc1 {[%clk 0:00:39]}  Reg7 {[%clk 0:00:13]} 32. Nf6 {[%clk 0:00:35]}  Rf8 {[%clk 0:00:12]} 33. Ng4 {[%clk 0:00:34]}  Ng3+ {[%clk 0:00:11]} 34. Kh2 {[%clk 0:00:34]}  Re7 {[%clk 0:00:12]} 35. Rcd1 {[%clk 0:00:27]}  Rfe8 {[%clk 0:00:12]} 36. Nf6 {[%clk 0:00:25]}  Rf8 {[%clk 0:00:10]} 37. Ne4 {[%clk 0:00:20]}  Nxe4 {[%clk 0:00:10]} 38. fxe4 {[%clk 0:00:21]}  Rxe4 {[%clk 0:00:11]} 39. Rd4 {[%clk 0:00:22]}  Rff4 {[%clk 0:00:10]} 40. Rxe4 {[%clk 0:00:21]}  Rxe4 {[%clk 0:00:11]} 41. Rd2 {[%clk 0:00:21]}  Kb6 {[%clk 0:00:10]} 42. g3 {[%clk 0:00:22]}  Kb5 {[%clk 0:00:09]} 43. gxh4 {[%clk 0:00:20]}  Kb4 {[%clk 0:00:09]} 44. Kg3 {[%clk 0:00:19]}  Ka3 {[%clk 0:00:09]} 45. h5 {[%clk 0:00:18]}  Re1 {[%clk 0:00:08]} 46. Kh4 {[%clk 0:00:15]}  Re4+ {[%clk 0:00:08]} 47. Kg5 {[%clk 0:00:15]}  Re5+ {[%clk 0:00:08]} 48. Kg6 {[%clk 0:00:15]}  Re6+ {[%clk 0:00:09]} 49. Kf5 {[%clk 0:00:16]}  Rc6 {[%clk 0:00:08]} 50. Re2 {[%clk 0:00:12]}  Rc5+ {[%clk 0:00:06]} 51. Kg6 {[%clk 0:00:09]}  Rc6+ {[%clk 0:00:06]} 52. Kf5 {[%clk 0:00:07]}  Rc5+ {[%clk 0:00:07]} 53. Re5 {[%clk 0:00:07]}  Rc3 {[%clk 0:00:07]} 54. Kg4 {[%clk 0:00:06]}  Rc2 {[%clk 0:00:06]} 55. h6 {[%clk 0:00:06]}  Rg2+ {[%clk 0:00:07]} 56. Kh5 {[%clk 0:00:06]}  Rg8 {[%clk 0:00:07]} 57. h7 {[%clk 0:00:06]}  Rh8 {[%clk 0:00:07]} 58. Kg6 {[%clk 0:00:07]}  Kxa2 {[%clk 0:00:07]} 59. Kg7 {[%clk 0:00:07]}  Rc8 {[%clk 0:00:07]} 60. h8=Q {[%clk 0:00:07]}  Rxh8 {[%clk 0:00:08]} 61. Kxh8 {[%clk 0:00:07]}  Kxb3 {[%clk 0:00:09]} 62. h4 {[%clk 0:00:05]}  b5 {[%clk 0:00:09]} 63. h5 {[%clk 0:00:06]}  b4 {[%clk 0:00:10]} 64. h6 {[%clk 0:00:06]}  Kc4 {[%clk 0:00:10]} 65. h7 {[%clk 0:00:07]}  b3 {[%clk 0:00:11]} 66. Kg8 {[%clk 0:00:07]}  b2 {[%clk 0:00:11]} 67. Re1 {[%clk 0:00:07]}  a5 {[%clk 0:00:11]} 68. h8=Q {[%clk 0:00:07]}  a4 {[%clk 0:00:12]} 69. Qxb2 {[%clk 0:00:07]}  a3 {[%clk 0:00:13]} 70. Qxa3 {[%clk 0:00:07]}  Kd4 {[%clk 0:00:11]} 71. Qe3+ {[%clk 0:00:06]}  Kc4 {[%clk 0:00:11]} 72. Rc1+ {[%clk 0:00:06]}  Kd5 {[%clk 0:00:12]} 73. Rc5+ {[%clk 0:00:06]}  Kd6 {[%clk 0:00:12]} 74. Qe5+ {[%clk 0:00:06]}  Kd7 {[%clk 0:00:13]} 75. Rc7+ {[%clk 0:00:07]}  Kd8 {[%clk 0:00:14]} 76. Qe7# {[%clk 0:00:07]} 1-0


[Site "https://www.chess.com"]

[Event "Titled Tuesday Blitz January 31 Late 2023"]
[White "Kleiman, Jake"]
[Black "Dourerassou, Jonathan"]
[WhiteFideId "2020041"]
[BlackFideId "628050"]
[WhiteElo "2399"]
[BlackElo "2414"]
[Result "1-0"]
[Round "03"]
[TimeControl "180+2"]
[Date "2023.01.31"]
[WhiteClock "0:00:17"]
[BlackClock "0:00:14"]

1. e4 {[%clk 0:03:00]}  e6 {[%clk 0:02:55]} 2. d3 {[%clk 0:03:00]}  d5 {[%clk 0:02:55]} 3. Nd2 {[%clk 0:03:00]}  b6 {[%clk 0:02:55]} 4. Ngf3 {[%clk 0:03:00]}  Bb7 {[%clk 0:02:55]} 5. g3 {[%clk 0:03:00]}  Nf6 {[%clk 0:02:55]} 6. e5 {[%clk 0:03:00]}  Nfd7 {[%clk 0:02:55]} 7. Bg2 {[%clk 0:03:00]}  c5 {[%clk 0:02:54]} 8. O-O {[%clk 0:03:01]}  Nc6 {[%clk 0:02:55]} 9. Re1 {[%clk 0:03:01]}  Qc7 {[%clk 0:02:55]} 10. Qe2 {[%clk 0:03:01]}  h6 {[%clk 0:02:55]} 11. h4 {[%clk 0:03:01]}  O-O-O {[%clk 0:02:53]} 12. Nf1 {[%clk 0:02:58]}  Be7 {[%clk 0:02:51]} 13. c3 {[%clk 0:02:54]}  g5 {[%clk 0:02:50]} 14. hxg5 {[%clk 0:02:54]}  hxg5 {[%clk 0:02:51]} 15. g4 {[%clk 0:02:55]}  d4 {[%clk 0:02:44]} 16. Ng3 {[%clk 0:02:49]}  dxc3 {[%clk 0:02:40]} 17. bxc3 {[%clk 0:02:48]}  Ba6 {[%clk 0:02:39]} 18. Qe4 {[%clk 0:02:31]}  Bb7 {[%clk 0:02:21]} 19. Qe2 {[%clk 0:02:27]}  Rh4 {[%clk 0:02:15]} 20. Nxh4 {[%clk 0:02:25]}  gxh4 {[%clk 0:02:16]} 21. Ne4 {[%clk 0:02:15]}  Ndxe5 {[%clk 0:02:11]} 22. Bf4 {[%clk 0:02:15]}  Qd7 {[%clk 0:02:09]} 23. Nxc5 {[%clk 0:01:39]}  Bxc5 {[%clk 0:02:03]} 24. Bxe5 {[%clk 0:01:30]}  Nxe5 {[%clk 0:01:49]} 25. Qxe5 {[%clk 0:01:11]}  Bxg2 {[%clk 0:01:43]} 26. Kxg2 {[%clk 0:01:12]}  Qxd3 {[%clk 0:01:42]} 27. Qe4 {[%clk 0:00:52]}  h3+ {[%clk 0:01:39]} 28. Kh2 {[%clk 0:00:51]}  Qd6+ {[%clk 0:01:33]} 29. f4 {[%clk 0:00:39]}  Qd2+ {[%clk 0:01:11]} 30. Re2 {[%clk 0:00:37]}  Qxc3 {[%clk 0:01:11]} 31. Qa8+ {[%clk 0:00:32]}  Kc7 {[%clk 0:01:11]} 32. Qxa7+ {[%clk 0:00:32]}  Kc6 {[%clk 0:01:12]} 33. Qa4+ {[%clk 0:00:30]}  Kb7 {[%clk 0:01:03]} 34. Rd1 {[%clk 0:00:28]}  Rxd1 {[%clk 0:00:57]} 35. Qxd1 {[%clk 0:00:29]}  Qc4 {[%clk 0:00:48]} 36. Qf1 {[%clk 0:00:21]}  Ka7 {[%clk 0:00:43]} 37. Qf3 {[%clk 0:00:20]}  Qc1 {[%clk 0:00:41]} 38. Kxh3 {[%clk 0:00:19]}  Qb1 {[%clk 0:00:39]} 39. f5 {[%clk 0:00:15]}  Qc1 {[%clk 0:00:29]} 40. fxe6 {[%clk 0:00:14]}  Qh6+ {[%clk 0:00:29]} 41. Kg2 {[%clk 0:00:14]}  fxe6 {[%clk 0:00:29]} 42. Qf7+ {[%clk 0:00:14]}  Ka6 {[%clk 0:00:29]} 43. Qxe6 {[%clk 0:00:14]}  Qf4 {[%clk 0:00:25]} 44. Qe4 {[%clk 0:00:13]}  Qf8 {[%clk 0:00:24]} 45. Qa4+ {[%clk 0:00:13]}  Kb7 {[%clk 0:00:23]} 46. Rd2 {[%clk 0:00:11]}  Bd6 {[%clk 0:00:18]} 47. Qe4+ {[%clk 0:00:10]}  Ka7 {[%clk 0:00:18]} 48. Qe6 {[%clk 0:00:08]}  Qa8+ {[%clk 0:00:18]} 49. Qd5 {[%clk 0:00:09]}  Qc8 {[%clk 0:00:15]} 50. Qxd6 {[%clk 0:00:09]}  Qxg4+ {[%clk 0:00:15]} 51. Kf2 {[%clk 0:00:09]}  Qh4+ {[%clk 0:00:15]} 52. Ke2 {[%clk 0:00:09]}  Qe4+ {[%clk 0:00:15]} 53. Kd1 {[%clk 0:00:09]}  Qb1+ {[%clk 0:00:15]} 54. Ke2 {[%clk 0:00:10]}  Qe4+ {[%clk 0:00:16]} 55. Kf2 {[%clk 0:00:10]}  Qh4+ {[%clk 0:00:16]} 56. Kf3 {[%clk 0:00:11]}  Qh3+ {[%clk 0:00:16]} 57. Ke4 {[%clk 0:00:11]}  Qg4+ {[%clk 0:00:16]} 58. Kd3 {[%clk 0:00:11]}  Qf5+ {[%clk 0:00:15]} 59. Kc3 {[%clk 0:00:12]}  Qa5+ {[%clk 0:00:14]} 60. Kb3 {[%clk 0:00:12]}  Qb5+ {[%clk 0:00:15]} 61. Ka3 {[%clk 0:00:13]}  Qa5+ {[%clk 0:00:14]} 62. Kb2 {[%clk 0:00:13]}  Qb5+ {[%clk 0:00:14]} 63. Kc2 {[%clk 0:00:14]}  Qf5+ {[%clk 0:00:14]} 64. Rd3 {[%clk 0:00:14]}  Qf2+ {[%clk 0:00:14]} 65. Kb3 {[%clk 0:00:14]}  Qf7+ {[%clk 0:00:12]} 66. Qd5 {[%clk 0:00:15]}  Qf1 {[%clk 0:00:12]} 67. Qd7+ {[%clk 0:00:15]}  Ka6 {[%clk 0:00:13]} 68. Qa4+ {[%clk 0:00:15]}  Kb7 {[%clk 0:00:13]} 69. Rd7+ {[%clk 0:00:16]}  Kc8 {[%clk 0:00:14]} 70. Qc6+ {[%clk 0:00:16]}  Kb8 {[%clk 0:00:14]} 71. Qb7# {[%clk 0:00:17]} 1-0


[Site "https://www.chess.com"]

[Event "Titled Tuesday Blitz January 31 Late 2023"]
[White "Golubka, Petro"]
[Black "Grycel, Kamil"]
[WhiteFideId "14114224"]
[BlackFideId "1115499"]
[WhiteElo "2371"]
[BlackElo "2315"]
[Result "0-1"]
[Round "03"]
[TimeControl "180+2"]
[Date "2023.01.31"]
[WhiteClock "0:00:10"]
[BlackClock "0:00:28"]

1. e4 {[%clk 0:02:33]}  c5 {[%clk 0:02:59]} 2. Be2 {[%clk 0:02:30]}  e6 {[%clk 0:02:59]} 3. Nc3 {[%clk 0:02:31]}  a6 {[%clk 0:02:59]} 4. Nf3 {[%clk 0:02:32]}  b5 {[%clk 0:02:55]} 5. a3 {[%clk 0:02:31]}  Bb7 {[%clk 0:02:55]} 6. d3 {[%clk 0:02:31]}  Qc7 {[%clk 0:02:53]} 7. O-O {[%clk 0:02:30]}  Nc6 {[%clk 0:02:51]} 8. g3 {[%clk 0:02:30]}  Nf6 {[%clk 0:02:46]} 9. Bf4 {[%clk 0:02:31]}  d6 {[%clk 0:02:47]} 10. Qd2 {[%clk 0:02:29]}  Be7 {[%clk 0:02:45]} 11. b4 {[%clk 0:02:29]}  cxb4 {[%clk 0:02:28]} 12. axb4 {[%clk 0:02:30]}  O-O {[%clk 0:02:22]} 13. Rfb1 {[%clk 0:02:30]}  Rac8 {[%clk 0:02:16]} 14. Nd1 {[%clk 0:02:30]}  e5 {[%clk 0:02:07]} 15. Bg5 {[%clk 0:02:29]}  h6 {[%clk 0:02:07]} 16. Bxf6 {[%clk 0:02:29]}  Bxf6 {[%clk 0:02:07]} 17. Ne3 {[%clk 0:02:30]}  Nd4 {[%clk 0:02:02]} 18. Ra2 {[%clk 0:02:24]}  Nxf3+ {[%clk 0:01:51]} 19. Bxf3 {[%clk 0:02:24]}  Bg5 {[%clk 0:01:52]} 20. h4 {[%clk 0:02:20]}  Bxe3 {[%clk 0:01:50]} 21. Qxe3 {[%clk 0:02:21]}  f5 {[%clk 0:01:48]} 22. exf5 {[%clk 0:02:19]}  Rxf5 {[%clk 0:01:44]} 23. Bg4 {[%clk 0:02:17]}  Rcf8 {[%clk 0:01:44]} 24. Bxf5 {[%clk 0:02:15]}  Rxf5 {[%clk 0:01:45]} 25. Kf1 {[%clk 0:02:12]}  Qc6 {[%clk 0:01:41]} 26. Ke2 {[%clk 0:02:09]}  Qg2 {[%clk 0:01:34]} 27. Rf1 {[%clk 0:02:06]}  Rf3 {[%clk 0:01:26]} 28. Qb6 {[%clk 0:02:04]}  Rxg3 {[%clk 0:01:19]} 29. Qxd6 {[%clk 0:02:01]}  Bf3+ {[%clk 0:01:07]} 30. Kd2 {[%clk 0:01:53]}  Rg6 {[%clk 0:01:02]} 31. Qd8+ {[%clk 0:01:46]}  Kh7 {[%clk 0:01:02]} 32. Raa1 {[%clk 0:01:46]}  e4 {[%clk 0:00:57]} 33. Rae1 {[%clk 0:01:39]}  exd3 {[%clk 0:00:54]} 34. Qxd3 {[%clk 0:01:40]}  Qg4 {[%clk 0:00:40]} 35. Rg1 {[%clk 0:01:34]}  Qf4+ {[%clk 0:00:38]} 36. Kc3 {[%clk 0:01:29]}  Qf6+ {[%clk 0:00:32]} 37. Kb3 {[%clk 0:01:22]}  Bh5 {[%clk 0:00:32]} 38. Rxg6 {[%clk 0:01:02]}  Bxg6 {[%clk 0:00:32]} 39. Qg3 {[%clk 0:00:49]}  Qf7+ {[%clk 0:00:31]} 40. Ka3 {[%clk 0:00:42]}  Qc4 {[%clk 0:00:32]} 41. h5 {[%clk 0:00:37]}  Bxc2 {[%clk 0:00:31]} 42. Re7 {[%clk 0:00:34]}  Qd4 {[%clk 0:00:28]} 43. Ka2 {[%clk 0:00:25]}  Bd3 {[%clk 0:00:27]} 44. Qe5 {[%clk 0:00:16]}  Bc4+ {[%clk 0:00:27]} 45. Kb1 {[%clk 0:00:15]}  Qd1+ {[%clk 0:00:27]} 46. Kb2 {[%clk 0:00:15]}  Qd2+ {[%clk 0:00:28]} 47. Ka3 {[%clk 0:00:10]}  Qa2# {[%clk 0:00:28]} 0-1


[Site "https://www.chess.com"]

[Event "Titled Tuesday Blitz January 31 Late 2023"]
[White "Alex_Sahakyan2006"]
[Black "Donskov, Anatoly"]
[BlackFideId "24143413"]
[WhiteElo "2668"]
[BlackElo "2279"]
[Result "0-1"]
[Round "03"]
[TimeControl "180+2"]
[Date "2023.01.31"]
[WhiteClock "0:00:19"]
[BlackClock "0:00:04"]

1. e4 {[%clk 0:03:00]}  c5 {[%clk 0:03:00]} 2. Nc3 {[%clk 0:03:00]}  e6 {[%clk 0:03:00]} 3. Nge2 {[%clk 0:02:58]}  Nc6 {[%clk 0:02:57]} 4. g3 {[%clk 0:02:58]}  Nf6 {[%clk 0:02:47]} 5. Bg2 {[%clk 0:02:55]}  Be7 {[%clk 0:02:47]} 6. O-O {[%clk 0:02:53]}  O-O {[%clk 0:02:47]} 7. d4 {[%clk 0:02:52]}  cxd4 {[%clk 0:02:47]} 8. Nxd4 {[%clk 0:02:53]}  d6 {[%clk 0:02:47]} 9. Be3 {[%clk 0:02:51]}  Bd7 {[%clk 0:02:45]} 10. h3 {[%clk 0:02:40]}  Nxd4 {[%clk 0:02:35]} 11. Qxd4 {[%clk 0:02:33]}  Bc6 {[%clk 0:02:35]} 12. Rad1 {[%clk 0:02:31]}  Qc7 {[%clk 0:02:33]} 13. f4 {[%clk 0:02:29]}  Rfd8 {[%clk 0:02:16]} 14. Kh2 {[%clk 0:02:25]}  b5 {[%clk 0:02:14]} 15. a3 {[%clk 0:02:24]}  a5 {[%clk 0:02:12]} 16. Bg1 {[%clk 0:02:11]}  Rab8 {[%clk 0:02:09]} 17. b4 {[%clk 0:02:10]}  axb4 {[%clk 0:02:06]} 18. axb4 {[%clk 0:02:11]}  Ba8 {[%clk 0:01:29]} 19. Ra1 {[%clk 0:02:06]}  Rdc8 {[%clk 0:01:17]} 20. Ra3 {[%clk 0:02:05]}  Qc4 {[%clk 0:01:16]} 21. Rfa1 {[%clk 0:01:57]}  d5 {[%clk 0:00:56]} 22. Qxc4 {[%clk 0:01:54]}  dxc4 {[%clk 0:00:53]} 23. Nxb5 {[%clk 0:01:34]}  Bxe4 {[%clk 0:00:38]} 24. Bxe4 {[%clk 0:01:33]}  Nxe4 {[%clk 0:00:39]} 25. Ra7 {[%clk 0:01:32]}  Bf6 {[%clk 0:00:30]} 26. R1a5 {[%clk 0:01:29]}  Bd8 {[%clk 0:00:30]} 27. R5a6 {[%clk 0:01:17]}  Rxb5 {[%clk 0:00:29]} 28. Ra8 {[%clk 0:01:18]}  Rbb8 {[%clk 0:00:29]} 29. Rxb8 {[%clk 0:01:17]}  Rxb8 {[%clk 0:00:29]} 30. b5 {[%clk 0:01:17]}  Nf6 {[%clk 0:00:14]} 31. Kg2 {[%clk 0:01:09]}  Nd5 {[%clk 0:00:14]} 32. Kf3 {[%clk 0:01:07]}  g6 {[%clk 0:00:14]} 33. g4 {[%clk 0:01:04]}  Bb6 {[%clk 0:00:14]} 34. Bh2 {[%clk 0:01:03]}  Bc7 {[%clk 0:00:13]} 35. Rc6 {[%clk 0:00:59]}  Rxb5 {[%clk 0:00:12]} 36. Rxc4 {[%clk 0:00:59]}  Rb4 {[%clk 0:00:12]} 37. Rxb4 {[%clk 0:00:55]}  Nxb4 {[%clk 0:00:13]} 38. c4 {[%clk 0:00:56]}  Nc6 {[%clk 0:00:12]} 39. Bg1 {[%clk 0:00:55]}  f6 {[%clk 0:00:11]} 40. Ke4 {[%clk 0:00:55]}  Kf7 {[%clk 0:00:10]} 41. f5 {[%clk 0:00:55]}  exf5+ {[%clk 0:00:10]} 42. gxf5 {[%clk 0:00:56]}  g5 {[%clk 0:00:10]} 43. Bc5 {[%clk 0:00:50]}  h5 {[%clk 0:00:10]} 44. Kd5 {[%clk 0:00:50]}  Ne7+ {[%clk 0:00:09]} 45. Ke4 {[%clk 0:00:50]}  Ke8 {[%clk 0:00:07]} 46. Bd4 {[%clk 0:00:50]}  Kf7 {[%clk 0:00:07]} 47. c5 {[%clk 0:00:50]}  Nc6 {[%clk 0:00:07]} 48. Bf2 {[%clk 0:00:48]}  h4 {[%clk 0:00:06]} 49. Kd5 {[%clk 0:00:48]}  Nb4+ {[%clk 0:00:06]} 50. Kc4 {[%clk 0:00:47]}  Nc6 {[%clk 0:00:04]} 51. Kd5 {[%clk 0:00:47]}  Ne7+ {[%clk 0:00:04]} 52. Ke4 {[%clk 0:00:47]}  Be5 {[%clk 0:00:04]} 53. Be1 {[%clk 0:00:44]}  Ke8 {[%clk 0:00:05]} 54. Bd2 {[%clk 0:00:41]}  Kd7 {[%clk 0:00:05]} 55. Bxg5 {[%clk 0:00:41]}  fxg5 {[%clk 0:00:05]} 56. Kxe5 {[%clk 0:00:41]}  Nc6+ {[%clk 0:00:03]} 57. Kd5 {[%clk 0:00:20]}  g4 {[%clk 0:00:03]} 58. f6 {[%clk 0:00:19]}  gxh3 {[%clk 0:00:03]} 59. f7 {[%clk 0:00:20]}  Ke7 {[%clk 0:00:03]} 60. Kxc6 {[%clk 0:00:19]}  h2 {[%clk 0:00:03]} 61. f8=Q+ {[%clk 0:00:18]}  Kxf8 {[%clk 0:00:03]} 62. Kd7 {[%clk 0:00:19]}  h1=Q {[%clk 0:00:04]} 63. c6 {[%clk 0:00:19]}  Qxc6+ {[%clk 0:00:04]} 0-1


[Site "https://www.chess.com"]

[Event "Titled Tuesday Blitz January 31 Late 2023"]
[White "Oro, Faustino"]
[Black "Wartiovaara, Oliver"]
[WhiteFideId "20000197"]
[BlackFideId "513024"]
[WhiteElo "2269"]
[BlackElo "2264"]
[Result "0-1"]
[Round "03"]
[TimeControl "180+2"]
[Date "2023.01.31"]
[WhiteClock "0:00:16"]
[BlackClock "0:00:17"]

1. Nf3 {[%clk 0:03:00]}  Nf6 {[%clk 0:02:54]} 2. g3 {[%clk 0:03:00]}  b5 {[%clk 0:02:54]} 3. Bg2 {[%clk 0:03:00]}  Bb7 {[%clk 0:02:55]} 4. O-O {[%clk 0:03:01]}  e6 {[%clk 0:02:54]} 5. d3 {[%clk 0:03:00]}  Be7 {[%clk 0:02:52]} 6. Nbd2 {[%clk 0:02:59]}  O-O {[%clk 0:02:52]} 7. b3 {[%clk 0:02:58]}  a5 {[%clk 0:02:51]} 8. a4 {[%clk 0:02:58]}  b4 {[%clk 0:02:49]} 9. Bb2 {[%clk 0:02:56]}  c5 {[%clk 0:02:49]} 10. e4 {[%clk 0:02:52]}  d5 {[%clk 0:02:48]} 11. exd5 {[%clk 0:02:52]}  Bxd5 {[%clk 0:02:37]} 12. Nc4 {[%clk 0:02:50]}  Nc6 {[%clk 0:02:36]} 13. Qe2 {[%clk 0:02:50]}  Nd7 {[%clk 0:02:26]} 14. Rad1 {[%clk 0:02:39]}  Bf6 {[%clk 0:02:20]} 15. d4 {[%clk 0:02:37]}  cxd4 {[%clk 0:02:15]} 16. Nxd4 {[%clk 0:02:36]}  Nxd4 {[%clk 0:02:13]} 17. Bxd4 {[%clk 0:02:36]}  Bxd4 {[%clk 0:02:12]} 18. Rxd4 {[%clk 0:02:37]}  Nf6 {[%clk 0:02:11]} 19. Rfd1 {[%clk 0:02:33]}  Qc7 {[%clk 0:02:08]} 20. Ne3 {[%clk 0:02:18]}  Bxg2 {[%clk 0:02:06]} 21. Kxg2 {[%clk 0:02:19]}  h5 {[%clk 0:01:57]} 22. h4 {[%clk 0:02:18]}  Rfd8 {[%clk 0:01:50]} 23. Qd3 {[%clk 0:02:16]}  Rxd4 {[%clk 0:01:45]} 24. Qxd4 {[%clk 0:02:17]}  Rc8 {[%clk 0:01:43]} 25. Qd6 {[%clk 0:01:58]}  Qb7+ {[%clk 0:01:26]} 26. Kg1 {[%clk 0:01:56]}  Ng4 {[%clk 0:01:22]} 27. Nc4 {[%clk 0:01:50]}  Qf3 {[%clk 0:01:19]} 28. Rd2 {[%clk 0:01:50]}  Qf5 {[%clk 0:01:08]} 29. Qd3 {[%clk 0:01:48]}  Qc5 {[%clk 0:01:00]} 30. Kg2 {[%clk 0:01:43]}  Ne5 {[%clk 0:00:59]} 31. Nxe5 {[%clk 0:01:16]}  Qxe5 {[%clk 0:01:00]} 32. Re2 {[%clk 0:00:58]}  Qc5 {[%clk 0:00:56]} 33. Kf1 {[%clk 0:00:55]}  Qc6 {[%clk 0:00:55]} 34. Kg1 {[%clk 0:00:55]}  g6 {[%clk 0:00:53]} 35. Rd2 {[%clk 0:00:55]}  Qc5 {[%clk 0:00:50]} 36. Qa6 {[%clk 0:00:51]}  Kg7 {[%clk 0:00:36]} 37. Qb7 {[%clk 0:00:46]}  Rc7 {[%clk 0:00:36]} 38. Qb8 {[%clk 0:00:46]}  Rc8 {[%clk 0:00:31]} 39. Qf4 {[%clk 0:00:46]}  Qc3 {[%clk 0:00:28]} 40. Rd7 {[%clk 0:00:37]}  Qa1+ {[%clk 0:00:25]} 41. Kg2 {[%clk 0:00:36]}  Qf6 {[%clk 0:00:25]} 42. Qe4 {[%clk 0:00:36]}  Rc5 {[%clk 0:00:23]} 43. Rd3 {[%clk 0:00:24]}  Qf5 {[%clk 0:00:22]} 44. Qd4+ {[%clk 0:00:24]}  Qe5 {[%clk 0:00:21]} 45. Qxe5+ {[%clk 0:00:20]}  Rxe5 {[%clk 0:00:22]} 46. Kf1 {[%clk 0:00:21]}  Rc5 {[%clk 0:00:22]} 47. Rd2 {[%clk 0:00:21]}  Kf6 {[%clk 0:00:20]} 48. Ke2 {[%clk 0:00:21]}  Ke5 {[%clk 0:00:19]} 49. Ke3 {[%clk 0:00:20]}  Rc3+ {[%clk 0:00:19]} 50. Ke2 {[%clk 0:00:20]}  f6 {[%clk 0:00:18]} 51. Kd1 {[%clk 0:00:19]}  g5 {[%clk 0:00:18]} 52. hxg5 {[%clk 0:00:16]}  fxg5 {[%clk 0:00:19]} 53. Rd8 {[%clk 0:00:16]}  h4 {[%clk 0:00:18]} 54. gxh4 {[%clk 0:00:17]}  gxh4 {[%clk 0:00:19]} 55. Rh8 {[%clk 0:00:17]}  h3 {[%clk 0:00:20]} 56. Rh4 {[%clk 0:00:17]}  Kf5 {[%clk 0:00:18]} 57. Kd2 {[%clk 0:00:17]}  Kg5 {[%clk 0:00:18]} 58. Rh8 {[%clk 0:00:18]}  Kg4 {[%clk 0:00:18]} 59. Ke1 {[%clk 0:00:16]}  Rxc2 {[%clk 0:00:17]} 0-1


[Site "https://www.chess.com"]